bitfinex-derivatives/quotes_ETHF0:USTF0_20260118
["timestamp","ask_amount","ask_price","bid_price","bid_amount"]
[1768720944537,1.41080623,3310.7,3309.1,0.25271891]
[1768720944740,1.06013129,3310.6,3309.1,0.25271891]
[1768720945050,0.00385469,3310.9,3309.1,0.25271891]
[1768720945253,1.41080317,3310.8,3309.1,0.25271891]
[1768720945452,1.41080317,3310.7,3309.1,0.25271891]
[1768720945751,1.06012922,3310.6,3309.1,0.25271891]
[1768720946050,0.00385469,3310.9,3309.1,0.25271891]
[1768720946250,1.41079645,3310.8,3309.1,0.25271891]
[1768720946450,0.00385469,3310.9,3309.1,0.25271891]
[1768720946451,1.41079645,3310.7,3309.1,0.25271891]
[1768720946650,1.06012446,3310.6,3309.1,0.25271891]
[1768720946849,0.00385469,3310.9,3309.1,0.25271891]
[1768720947051,1.41080023,3310.8,3309.1,0.25271891]
[1768720947250,1.41080023,3310.7,3309.1,0.25271891]
[1768720947451,1.06012509,3310.6,3309.4,0.97428552]
[1768720947751,0.97428552,3310.8,3309.4,0.97428552]
[1768720947950,1.41081386,3310.7,3309.4,0.97428552]
[1768720948158,1.06013514,3310.6,3309.4,0.97428552]
[1768720948361,0.97428552,3310.8,3309.4,0.97428552]
[1768720948664,1.41083055,3310.7,3309.4,0.97428552]
[1768720948855,1.0601474,3310.6,3309.4,0.97428552]
[1768720949056,0.97428552,3310.8,3309.4,0.97428552]
[1768720949256,1.41084572,3310.7,3309.4,0.97428552]
[1768720949456,1.06016257,3310.6,3309.4,0.97428552]
[1768720949662,0.97428552,3310.8,3309.4,0.97428552]
[1768720949859,1.41085186,3310.7,3309.4,0.97428552]
[1768720950059,1.06016298,3310.6,3309.4,0.97428552]
[1768720950259,0.97428552,3310.8,3309.4,0.97428552]
[1768720950458,1.41085355,3310.7,3309.4,0.97428552]
[1768720950659,1.06016428,3310.6,3309.4,0.97428552]
[1768720950859,0.97428552,3310.8,3309.4,0.97428552]
[1768720951065,1.41085354,3310.7,3309.4,0.97428552]
[1768720951367,1.06016427,3310.6,3309.4,0.97428552]
[1768720951666,0.97428552,3310.8,3309.4,0.97428552]
[1768720951867,1.41087126,3310.7,3309.4,0.97428552]
[1768720952066,1.06017671,3310.6,3309.4,0.97428552]
[1768720952267,0.97428552,3310.8,3309.4,0.97428552]
[1768720952469,1.41090519,3310.7,3309.4,0.97428552]
[1768720952655,1.06020519,3310.6,3309.4,0.97428552]
[1768720952859,0.97428552,3310.8,3309.4,0.97428552]
[1768720953060,1.41090386,3310.7,3309.4,0.97428552]
[1768720953259,1.0602042,3310.6,3309.4,0.97428552]
[1768720953559,0.97428552,3310.8,3309.4,0.97428552]
[1768720953759,1.41090428,3310.7,3309.4,0.97428552]
[1768720953960,1.06020465,3310.6,3309.4,0.97428552]
[1768720954160,0.97428552,3310.8,3309.4,0.97428552]
[1768720954361,1.41090526,3310.7,3309.4,0.97428552]
[1768720954562,1.06020559,3310.6,3309.4,0.97428552]
[1768720954763,0.97428552,3310.8,3309.4,0.97428552]
[1768720954964,1.41090192,3310.7,3309.4,0.97428552]
[1768720955259,1.06020292,3310.6,3309.4,0.97428552]
[1768720955463,0.97428552,3310.8,3309.4,0.97428552]
[1768720955673,1.41090373,3310.7,3309.4,0.97428552]
[1768720955974,1.06020427,3310.6,3309.4,0.97428552]
[1768720956167,0.97428552,3310.8,3309.4,0.97428552]
[1768720956369,1.41090369,3310.7,3309.4,0.97428552]
[1768720956573,1.06020424,3310.6,3309.4,0.97428552]
[1768720956770,0.97428552,3310.8,3309.4,0.97428552]
[1768720956971,1.41090585,3310.7,3309.4,0.97428552]
[1768720957170,1.06020585,3310.6,3309.4,0.97428552]
[1768720957469,0.97428552,3310.8,3309.4,0.97428552]
[1768720957674,1.41090847,3310.7,3309.4,0.97428552]
[1768720957872,1.06020781,3310.6,3309.4,0.97428552]
[1768720958074,0.97428552,3310.8,3309.4,0.97428552]
[1768720958373,1.41090847,3310.7,3309.6,0.97428552]
[1768720958568,1.06020781,3310.6,3309.6,0.97428552]
[1768720958770,0.97814021,3310.9,3309.6,0.97428552]
[1768720959073,1.41091345,3310.8,3309.6,0.97428552]
[1768720959267,1.41091345,3310.7,3309.6,0.97428552]
[1768720959566,1.06021177,3310.6,3309.6,0.97428552]
[1768720959862,0.97814021,3310.9,3309.6,0.97428552]
[1768720960062,1.41091922,3310.8,3309.6,0.97428552]
[1768720960276,1.41091922,3310.7,3309.6,0.97428552]
[1768720960477,1.06021609,3310.6,3309.6,0.97428552]
[1768720960777,0.97814021,3310.9,3309.6,0.97428552]
[1768720960975,1.41092645,3310.8,3309.6,0.97428552]
[1768720961177,1.41092645,3310.7,3309.6,0.97428552]
[1768720961368,1.06022151,3310.6,3309.6,0.97428552]
[1768720961568,0.97814021,3310.9,3309.6,0.97428552]
[1768720961774,1.41093625,3310.8,3309.6,0.97428552]
[1768720962072,1.41093625,3310.7,3309.6,0.97428552]
[1768720962272,1.0602289,3310.6,3309.4,1.24319248]
[1768720962473,0.97814021,3310.9,3309.4,1.24319248]
[1768720962674,1.41095651,3310.8,3309.4,1.24319248]
[1768720962875,1.41095651,3310.7,3309.4,1.24319248]
[1768720963171,1.06024443,3310.6,3309.4,1.24319248]
[1768720963372,0.97814021,3310.9,3309.4,1.24319248]
[1768720963573,1.41095437,3310.8,3309.4,1.24319248]
[1768720963773,1.41095437,3310.7,3309.4,1.24319248]
[1768720963980,1.06024268,3310.6,3309.4,1.24319248]
[1768720964181,0.97814021,3310.9,3309.4,1.24319248]
[1768720964381,1.4109549,3310.8,3309.4,1.24319248]
[1768720964579,1.4109549,3310.7,3309.4,1.24319248]
[1768720964772,1.06024276,3310.6,3309.4,1.24319248]
[1768720964970,0.97814021,3310.9,3309.4,1.24319248]
[1768720965171,1.41095277,3310.8,3309.4,1.24319248]
[1768720965472,1.41095277,3310.7,3309.4,1.24319248]
[1768720965672,1.06024126,3310.6,3309.4,1.24319248]
[1768720965872,0.97814021,3310.9,3309.4,1.24319248]
[1768720966072,1.41095126,3310.8,3309.4,1.24319248]
[1768720966278,1.41095126,3310.7,3309.4,1.24319248]
[1768720966478,1.06024006,3310.6,3309.4,1.24319248]
[1768720966777,0.97814021,3310.9,3309.4,1.24319248]
[1768720966979,1.41095099,3310.8,3309.4,1.24319248]
[1768720967178,0.97814021,3310.9,3309.4,1.24319248]
[1768720967179,1.41095099,3310.7,3309.4,1.24319248]
[1768720967482,1.0602398,3310.6,3309.4,1.24319248]
[1768720967679,0.97814021,3310.9,3309.4,1.24319248]
[1768720967879,1.41094746,3310.8,3309.4,1.24319248]
[1768720968075,1.41094746,3310.7,3309.4,1.24319248]
[1768720968276,1.06023699,3310.6,3309.4,1.24319248]
[1768720968482,0.97814021,3310.9,3309.4,1.24319248]
[1768720968682,1.41094779,3310.8,3309.4,1.24319248]
[1768720968882,1.41094779,3310.7,3309.4,1.24319248]
[1768720969182,0.00385469,3310.9,3309.5,0.26890696]
[1768720969379,1.06008548,3310.8,3309.5,0.26890696]
[1768720969582,1.06008548,3310.7,3309.5,0.26890696]
[1768720969882,0.00385469,3310.9,3309.5,0.26890696]
[1768720970082,1.06008546,3310.8,3309.6,0.97428552]
[1768720970282,1.06008546,3310.7,3309.6,0.97428552]
[1768720970580,0.00385469,3310.9,3309.6,0.97428552]
[1768720970782,1.0599947,3310.8,3309.6,0.97428552]
[1768720970983,1.0599947,3310.7,3309.6,0.97428552]
[1768720971185,0.00385469,3310.9,3309.6,0.97428552]
[1768720971483,1.05992865,3310.8,3309.6,0.97428552]
[1768720971684,1.05992865,3310.7,3309.6,0.97428552]
[1768720971884,0.00385469,3310.9,3309.6,0.97428552]
[1768720972085,1.05943186,3310.8,3309.6,0.97428552]
[1768720972288,1.05943186,3310.7,3309.6,0.97428552]
[1768720972489,0.00385469,3310.9,3309.6,0.97428552]
[1768720972785,1.05937958,3310.8,3309.6,0.97428552]
[1768720973083,1.05937958,3310.7,3309.6,0.97428552]
[1768720973283,0.00385469,3310.9,3309.6,0.97428552]
[1768720973485,1.05933734,3310.8,3309.6,0.97428552]
[1768720973781,1.05933734,3310.7,3309.6,0.97428552]
[1768720973988,0.97814021,3310.9,3309.6,0.97428552]
[1768720974179,1.05933733,3310.8,3309.6,0.97428552]
[1768720974380,0.00385469,3310.9,3309.6,0.97428552]
[1768720974580,1.05930185,3310.8,3309.6,0.97428552]
[1768720974781,0.97814021,3310.9,3309.6,0.97428552]
[1768720974981,1.05930179,3310.8,3309.6,0.97428552]
[1768720975273,0.97814021,3310.9,3309.6,0.97428552]
[1768720975480,1.05927186,3310.8,3309.6,0.97428552]
[1768720975684,0.97814021,3310.9,3309.6,0.97428552]
[1768720975885,1.05927083,3310.8,3309.6,0.97428552]
[1768720976188,0.97814021,3310.9,3309.6,0.97428552]
[1768720976389,1.05924373,3310.8,3309.6,0.97428552]
[1768720976590,0.97814021,3310.9,3309.6,0.97428552]
[1768720976786,1.05924365,3310.8,3309.6,0.97428552]
[1768720976986,0.97814021,3310.9,3309.6,0.97428552]
[1768720977187,1.05924368,3310.8,3309.6,0.97428552]
[1768720977485,0.97814021,3310.9,3309.6,0.97428552]
[1768720977686,1.05922453,3310.8,3309.6,0.97428552]
[1768720977886,0.97814021,3310.9,3309.6,0.97428552]
[1768720978180,1.05922445,3310.8,3309.6,0.97428552]
[1768720978383,0.97814021,3310.9,3309.6,0.97428552]
[1768720978583,1.05920577,3310.8,3309.6,0.97428552]
[1768720978783,0.97814021,3310.9,3309.6,0.97428552]
[1768720978984,1.05920419,3310.8,3309.6,0.97428552]
[1768720979184,0.97814021,3310.9,3309.6,0.97428552]
[1768720979385,1.05919454,3310.8,3309.6,0.97428552]
[1768720979585,0.97814021,3310.9,3309.6,0.97428552]
[1768720979887,1.05919456,3310.8,3309.6,0.97428552]
[1768720980088,0.97814021,3310.9,3309.6,0.97428552]
[1768720980287,1.05919534,3310.8,3309.6,0.97428552]
[1768720980488,0.97814021,3310.9,3309.6,0.97428552]
[1768720980692,1.05919489,3310.8,3309.6,0.97428552]
[1768720980992,0.97814021,3310.9,3309.6,0.97428552]
[1768720981193,1.05919737,3310.8,3309.6,0.97428552]
[1768720981497,0.97814021,3310.9,3309.6,0.97428552]
[1768720981699,1.05918978,3310.8,3309.6,0.97428552]
[1768720981997,0.97814021,3310.9,3309.6,0.97428552]
[1768720982187,1.05918812,3310.8,3309.6,0.97428552]
[1768720982390,0.97814021,3310.9,3309.6,0.97428552]
[1768720982589,1.05918289,3310.8,3309.6,0.97428552]
[1768720982792,0.97814021,3310.9,3309.5,0.26890696]
[1768720982992,1.05918291,3310.8,3309.5,0.26890696]
[1768720983193,0.97814021,3310.9,3309.5,0.26890696]
[1768720983490,1.05918067,3310.8,3309.5,0.26890696]
[1768720983690,0.97814021,3310.9,3309.5,0.26890696]
[1768720983887,1.05918081,3310.8,3309.5,0.26890696]
[1768720984088,0.97814021,3310.9,3309.5,0.26890696]
[1768720984288,1.05918082,3310.8,3309.5,0.26890696]
[1768720984492,0.97814021,3310.9,3309.5,0.26890696]
[1768720984693,1.05918193,3310.8,3309.5,0.26890696]
[1768720984895,0.97814021,3310.9,3309.5,0.26890696]
[1768720985099,1.05918194,3310.8,3309.5,0.26890696]
[1768720985300,0.97814021,3310.9,3309.5,0.26890696]
[1768720985500,1.05918646,3310.8,3309.5,0.26890696]
[1768720985702,0.97814021,3310.9,3309.5,0.26890696]
[1768720985894,1.05918748,3310.8,3309.5,0.26890696]
[1768720986094,0.97814021,3310.9,3309.5,0.26890696]
[1768720986290,1.05919088,3310.8,3309.5,0.26890696]
[1768720986487,0.97814021,3310.9,3309.5,0.26890696]
[1768720986702,1.05920019,3310.8,3309.5,0.26890696]
[1768720986901,0.97814021,3310.9,3309.5,0.26890696]
[1768720987201,1.0592002,3310.8,3309.5,0.26890696]
[1768720987406,0.97814021,3310.9,3309.5,0.26890696]
[1768720987599,1.05921032,3310.8,3309.7,0.97428552]
[1768720987801,0.00385469,3310.9,3309.7,0.97428552]
[1768720988201,0.00385469,3310.9,3309.7,1.23557158]
[1768720989204,0.00385469,3310.9,3309.8,0.26128606]
[1768720991313,0.00385469,3310.9,3309.9,1.23557158]
[1768720992213,0.00385469,3310.9,3310.0,0.26128606]
[1768720994925,0.00385469,3310.9,3310.1,0.97428552]
[1768720996317,0.00385469,3310.9,3310.1,1.23557158]
[1768720997224,1.48764176,3311.9,3310.4,1.23557158]
[1768720997430,1.40327054,3311.8,3310.4,1.23557158]
[1768720997632,1.0583018,3311.7,3310.4,1.23557158]
[1768720997823,1.48764176,3311.9,3310.4,1.23557158]
[1768720998022,1.05822653,3311.8,3310.4,1.23557158]
[1768720998224,2.03251205,3311.7,3310.4,1.23557158]
[1768720998425,0.97428552,3311.7,3310.4,1.23557158]
[1768720999323,0.97428552,3311.7,3310.4,0.26128606]
[1768721001129,0.97428552,3311.8,3310.4,1.23557158]
[1768721001332,0.97428552,3311.8,3310.4,0.26128606]
[1768721006535,0.51642215,3311.9,3310.4,0.26128606]
[1768721006736,0.97428552,3311.7,3310.4,0.26128606]
[1768721008142,0.51642215,3311.9,3310.5,1.22766496]
[1768721008342,0.51642215,3311.9,3310.6,0.25337944]
[1768721008525,0.51642215,3311.9,3310.7,0.97428552]
[1768721008838,0.51642215,3311.9,3310.7,1.22766496]
[1768721009438,0.51642215,3311.9,3310.7,0.25337944]
[1768721012636,0.00306591,3311.9,3310.7,0.25337944]
[1768721013429,0.00306591,3311.9,3310.8,0.25337944]
[1768721025643,0.00306591,3311.9,3310.8,1.22686432]
[1768721026145,0.00306591,3311.9,3310.9,0.25536973]
[1768721036448,0.25537574,3312.9,3310.9,0.25536973]
[1768721036750,1.05697142,3312.8,3310.9,0.25536973]
[1768721036951,1.05697142,3312.7,3310.9,0.25536973]
[1768721037147,0.25537574,3312.9,3310.9,0.25536973]
[1768721037354,1.40378504,3312.8,3310.9,0.25536973]
[1768721037651,1.05702582,3312.7,3310.9,0.25536973]
[1768721037852,0.25791577,3312.9,3310.9,0.25536973]
[1768721038071,1.40397742,3312.8,3310.9,0.25536973]
[1768721038356,1.0572182,3312.7,3310.9,0.25536973]
[1768721038550,0.25791577,3312.9,3310.9,0.25536973]
[1768721038751,1.40422425,3312.8,3310.9,0.25536973]
[1768721039053,1.05739693,3312.7,3310.9,0.25536973]
[1768721039246,0.25791577,3312.9,3310.9,0.25536973]
[1768721039447,1.40439691,3312.8,3310.9,0.25536973]
[1768721039647,1.05753265,3312.7,3310.9,0.25536973]
[1768721039844,1.05753265,3312.6,3310.9,0.25536973]
[1768721040045,0.25791577,3312.9,3310.9,0.25536973]
[1768721040249,1.4043787,3312.8,3310.9,0.25536973]
[1768721040443,1.05751444,3312.7,3310.9,0.25536973]
[1768721040648,1.05751444,3312.6,3310.9,0.25536973]
[1768721040848,0.25791577,3312.9,3310.9,0.25536973]
[1768721041050,1.40460483,3312.8,3310.9,0.25536973]
[1768721041252,1.05768613,3312.7,3310.9,0.25536973]
[1768721041456,1.05768613,3312.6,3310.9,0.25536973]
[1768721041651,0.25791577,3312.9,3310.9,0.25536973]
[1768721041846,1.40487677,3312.8,3310.9,0.25536973]
[1768721042046,1.05789313,3312.7,3310.9,0.25536973]
[1768721042247,1.05789313,3312.6,3310.9,0.25536973]
[1768721042556,0.25791577,3312.9,3310.9,0.25536973]
[1768721042756,1.40517421,3312.8,3310.9,0.25536973]
[1768721042956,1.40517421,3312.7,3310.9,0.25536973]
[1768721043144,1.05812032,3312.6,3310.9,0.25536973]
[1768721043349,0.25791577,3312.9,3310.9,0.25536973]
[1768721043549,1.40548081,3312.8,3310.9,0.25536973]
[1768721043753,1.05835466,3312.7,3310.9,0.25536973]
[1768721043951,1.05835466,3312.6,3310.9,0.25536973]
[1768721044151,0.25791577,3312.9,3310.9,0.25536973]
[1768721044351,1.40550922,3312.8,3310.9,0.25536973]
[1768721044551,1.05835495,3312.7,3310.9,0.25536973]
[1768721044752,1.05835495,3312.6,3310.9,0.25536973]
[1768721045052,0.25791577,3312.9,3310.9,0.25536973]
[1768721045252,1.66091105,3312.8,3310.9,0.25536973]
[1768721045453,1.0583816,3312.7,3310.9,0.25536973]
[1768721046562,0.25537574,3312.8,3310.9,0.25536973]
[1768721046563,1.05838749,3312.6,3310.9,0.25536973]
[1768721046759,0.25537574,3312.8,3310.9,0.25536973]
[1768721046958,1.05838749,3312.7,3310.9,0.25536973]
[1768721047162,1.05838749,3312.6,3310.9,0.25536973]
[1768721047361,0.25537574,3312.8,3310.9,0.25536973]
[1768721047554,1.0583562,3312.7,3310.9,0.25536973]
[1768721047755,1.0583562,3312.6,3310.9,0.25536973]
[1768721048057,0.25537574,3312.8,3310.9,0.25536973]
[1768721048366,1.05835717,3312.7,3310.9,0.25536973]
[1768721048564,1.05835717,3312.6,3310.9,0.25536973]
[1768721048755,0.25537574,3312.8,3310.9,0.25536973]
[1768721048958,1.05833423,3312.7,3310.9,0.25536973]
[1768721049255,1.05833423,3312.6,3310.9,0.25536973]
[1768721049457,0.25537574,3312.8,3310.9,0.25536973]
[1768721049656,1.05831434,3312.7,3310.9,0.25536973]
[1768721049956,1.05831434,3312.6,3310.9,0.25536973]
[1768721050256,0.25537574,3312.8,3310.9,0.25536973]
[1768721050457,1.05830695,3312.7,3310.9,0.25536973]
[1768721050656,1.05830695,3312.6,3310.9,0.25536973]
[1768721050856,0.25537574,3312.8,3310.9,0.25536973]
[1768721051053,1.05830695,3312.7,3310.9,0.25536973]
[1768721051257,1.05830695,3312.6,3310.9,0.25536973]
[1768721051556,0.25537574,3312.8,3310.9,0.25536973]
[1768721051762,1.05830625,3312.7,3310.9,0.25536973]
[1768721052061,1.05830625,3312.6,3310.9,0.25536973]
[1768721052262,0.25537574,3312.8,3310.9,0.25536973]
[1768721052565,1.05830303,3312.7,3310.9,0.25536973]
[1768721052866,1.05830303,3312.6,3310.9,0.25536973]
[1768721053165,0.25537574,3312.8,3310.9,0.25536973]
[1768721053366,1.05830303,3312.7,3310.9,0.25536973]
[1768721053570,1.05830303,3312.6,3310.9,0.25536973]
[1768721053757,0.25537574,3312.8,3310.9,0.25536973]
[1768721053959,1.05830527,3312.7,3310.9,0.25536973]
[1768721054264,1.05830527,3312.6,3310.9,0.25536973]
[1768721054458,0.25537574,3312.8,3310.9,0.25536973]
[1768721054758,1.05831347,3312.7,3310.9,0.25536973]
[1768721054959,1.05831347,3312.6,3310.9,0.25536973]
[1768721055167,0.25537574,3312.8,3310.9,0.25536973]
[1768721055369,1.05831347,3312.7,3310.9,0.25536973]
[1768721055572,1.05831347,3312.6,3310.9,0.25536973]
[1768721055866,0.25537574,3312.8,3310.9,0.25536973]
[1768721056067,1.05832287,3312.7,3310.9,0.25536973]
[1768721056258,1.05832287,3312.6,3310.9,0.25536973]
[1768721056458,0.25537574,3312.8,3310.9,0.25536973]
[1768721056659,1.05833886,3312.7,3310.9,0.25536973]
[1768721056859,1.05833886,3312.6,3310.9,0.25536973]
[1768721057063,0.25537574,3312.8,3310.9,0.25536973]
[1768721057359,1.05833886,3312.7,3310.9,0.25536973]
[1768721057562,1.05833886,3312.6,3310.9,0.25536973]
[1768721057769,0.25537574,3312.8,3310.9,0.25536973]
[1768721057961,1.05836084,3312.7,3310.9,0.25536973]
[1768721058162,1.05836084,3312.6,3310.9,0.25536973]
[1768721058463,0.25537574,3312.8,3310.9,0.25536973]
[1768721058760,1.0583895,3312.7,3310.9,0.25536973]
[1768721058963,1.0583895,3312.6,3310.9,0.25536973]
[1768721059161,0.25537574,3312.8,3310.9,0.25536973]
[1768721059367,1.0583895,3312.7,3310.9,0.25536973]
[1768721059569,1.0583895,3312.6,3310.9,0.25536973]
[1768721059755,0.25537574,3312.8,3310.9,0.25536973]
[1768721059959,1.05842334,3312.7,3310.9,0.25536973]
[1768721060167,1.05842334,3312.6,3310.9,0.25536973]
[1768721060369,0.25537574,3312.8,3310.9,0.25536973]
[1768721060576,1.40564374,3312.7,3310.9,0.25536973]
[1768721060768,1.05846688,3312.6,3310.9,0.25536973]
[1768721060969,0.25537574,3312.8,3310.9,0.25536973]
[1768721061269,1.40566136,3312.7,3310.9,0.25536973]
[1768721061470,1.05846768,3312.6,3310.9,0.25536973]
[1768721061662,0.25537574,3312.8,3310.9,0.25536973]
[1768721061861,1.40571031,3312.7,3310.9,0.25536973]
[1768721062072,1.05851756,3312.6,3310.9,0.25536973]
[1768721062265,0.25537574,3312.8,3310.9,0.25536973]
[1768721062466,1.40486755,3312.7,3310.9,0.25536973]
[1768721062667,1.05765454,3312.6,3310.9,0.25536973]
[1768721062866,0.25537574,3312.8,3310.9,0.25536973]
[1768721063066,1.4048676,3312.7,3310.9,0.25536973]
[1768721063271,1.05765458,3312.6,3310.9,0.25536973]
[1768721063568,0.25537574,3312.8,3310.9,0.25536973]
[1768721063767,1.40497647,3312.7,3310.9,0.25536973]
[1768721063967,1.0577376,3312.6,3310.9,0.25536973]
[1768721064168,0.25537574,3312.8,3310.9,0.25536973]
[1768721064467,1.40500854,3312.7,3310.9,0.25536973]
[1768721064774,1.0577376,3312.6,3310.9,0.25536973]
[1768721064966,0.25537574,3312.8,3310.9,0.25536973]
[1768721065166,1.40511072,3312.7,3310.9,0.25536973]
[1768721065369,1.05784043,3312.6,3310.9,0.25536973]
[1768721065568,0.25537574,3312.8,3310.9,0.25536973]
[1768721065769,1.40523613,3312.7,3310.9,0.25536973]
[1768721066068,1.05793803,3312.6,3310.9,0.25536973]
[1768721066371,1.05808344,3312.5,3310.9,0.25536973]
[1768721066573,0.25537574,3312.8,3310.9,0.25536973]
[1768721066773,1.40544409,3312.7,3310.9,0.25536973]
[1768721066973,1.05808344,3312.6,3310.9,0.25536973]
[1768721067174,1.05808344,3312.5,3310.9,0.25536973]
[1768721067374,0.25537574,3312.8,3310.9,0.25536973]
[1768721067567,1.40546309,3312.7,3310.9,0.25536973]
[1768721067772,1.05809776,3312.6,3310.9,0.25536973]
[1768721067971,1.05809776,3312.5,3310.9,0.25536973]
[1768721068171,0.25537574,3312.8,3310.9,0.25536973]
[1768721068373,1.40545232,3312.7,3310.9,0.25536973]
[1768721068574,1.05808534,3312.6,3310.9,0.25536973]
[1768721068773,1.05808534,3312.5,3310.9,0.25536973]
[1768721068975,0.25537574,3312.8,3310.9,0.25536973]
[1768721069176,1.40547246,3312.7,3310.9,0.25536973]
[1768721069376,1.05810483,3312.6,3311.3,0.97318558]
[1768721069682,1.05810483,3312.5,3311.3,0.97318558]
[1768721069883,0.97318558,3312.7,3311.3,0.97318558]
[1768721070081,1.05812712,3312.6,3310.9,0.25536973]
[1768721070282,1.05812712,3312.5,3311.3,0.97318558]
[1768721070581,1.24193998,3312.7,3311.3,0.97318558]
[1768721070784,1.05812819,3312.6,3311.3,0.97318558]
[1768721070982,1.05812819,3312.5,3311.3,0.97318558]
[1768721071182,1.24193998,3312.7,3311.3,0.97318558]
[1768721071384,1.0581296,3312.6,3311.3,0.97318558]
[1768721071575,1.0581296,3312.5,3311.3,0.97318558]
[1768721071775,1.24193998,3312.7,3311.3,0.97318558]
[1768721071975,1.05816011,3312.6,3311.3,0.97318558]
[1768721072179,1.05816011,3312.5,3311.3,0.97318558]
[1768721072380,1.24193998,3312.7,3311.3,0.97318558]
[1768721072577,1.05821703,3312.6,3311.3,0.97318558]
[1768721072778,1.05821703,3312.5,3311.3,0.97318558]
[1768721072978,1.24193998,3312.7,3311.3,0.97318558]
[1768721073182,1.05821703,3312.6,3311.3,0.97318558]
[1768721073384,1.05821703,3312.5,3311.3,0.97318558]
[1768721073681,1.24193998,3312.7,3311.3,0.97318558]
[1768721073883,1.05823522,3312.6,3311.3,0.97318558]
[1768721074183,1.05823522,3312.5,3311.3,0.97318558]
[1768721074483,1.24193998,3312.7,3311.3,0.97318558]
[1768721074683,1.05823524,3312.6,3311.3,0.97318558]
[1768721074883,1.05823524,3312.5,3311.3,0.97318558]
[1768721075084,1.24193998,3312.7,3311.3,0.97318558]
[1768721075286,1.05823513,3312.6,3311.3,0.97318558]
[1768721075482,1.05823513,3312.5,3311.3,0.97318558]
[1768721075677,1.24193998,3312.7,3311.3,0.97318558]
[1768721075878,1.05823572,3312.6,3311.3,0.97318558]
[1768721076174,1.05823572,3312.5,3311.3,0.97318558]
[1768721076379,1.24193998,3312.7,3311.3,0.97318558]
[1768721076577,1.0582361,3312.6,3311.3,0.97318558]
[1768721076778,1.0582361,3312.5,3311.3,0.97318558]
[1768721076993,1.24193998,3312.7,3311.3,0.97318558]
[1768721077194,1.0582361,3312.6,3311.3,0.97318558]
[1768721077382,1.0582361,3312.5,3311.3,0.97318558]
[1768721077583,1.24193998,3312.7,3311.3,0.97318558]
[1768721077783,1.05823654,3312.6,3311.3,0.97318558]
[1768721077984,1.05823654,3312.5,3311.3,0.97318558]
[1768721078185,1.24193998,3312.7,3311.3,0.97318558]
[1768721078392,1.05823692,3312.6,3311.3,0.97318558]
[1768721078592,1.05823692,3312.5,3311.3,0.97318558]
[1768721078795,1.24193998,3312.7,3311.3,0.97318558]
[1768721078997,1.05823708,3312.6,3311.3,0.97318558]
[1768721079198,1.05823708,3312.5,3311.3,0.97318558]
[1768721079397,1.24193998,3312.7,3311.3,0.97318558]
[1768721079591,1.05823659,3312.6,3311.3,0.97318558]
[1768721079793,1.05823659,3312.5,3311.3,0.97318558]
[1768721080092,1.24193998,3312.7,3311.3,0.97318558]
[1768721080289,1.05823661,3312.6,3311.3,0.97318558]
[1768721080488,1.05823661,3312.5,3311.3,0.97318558]
[1768721080697,1.24193998,3312.7,3311.3,0.97318558]
[1768721080898,1.05823616,3312.6,3311.3,0.97318558]
[1768721081097,1.05823616,3312.5,3311.3,0.97318558]
[1768721081290,1.24193998,3312.7,3311.3,0.97318558]
[1768721081491,1.05823703,3312.6,3311.3,0.97318558]
[1768721081690,1.05823703,3312.5,3311.3,0.97318558]
[1768721081889,1.24193998,3312.7,3311.3,0.97318558]
[1768721082100,1.05823703,3312.6,3311.3,0.97318558]
[1768721082396,1.05823703,3312.5,3311.3,0.97318558]
[1768721082595,1.24193998,3312.7,3311.3,0.97318558]
[1768721082801,1.05823745,3312.6,3311.3,0.97318558]
[1768721083095,1.24193998,3312.7,3311.3,0.97318558]
[1768721083096,1.05823745,3312.5,3311.3,0.97318558]
[1768721083303,1.24193998,3312.7,3311.3,0.97318558]
[1768721083602,1.05823754,3312.6,3311.3,0.97318558]
[1768721083802,1.05823754,3312.5,3311.3,0.97318558]
[1768721084000,1.24193998,3312.7,3311.3,0.97318558]
[1768721084201,1.05823952,3312.6,3311.3,0.97318558]
[1768721084403,1.05823952,3312.5,3311.3,0.97318558]
[1768721084602,1.24193998,3312.7,3311.3,0.97318558]
[1768721084802,1.05823962,3312.6,3311.3,0.97318558]
[1768721085002,1.05823962,3312.5,3311.3,0.97318558]
[1768721085204,1.24193998,3312.7,3311.3,0.97318558]
[1768721085406,1.05823971,3312.6,3311.3,0.97318558]
[1768721085604,1.05823971,3312.5,3311.3,0.97318558]
[1768721085803,1.24193998,3312.7,3311.3,0.97318558]
[1768721086003,1.05823966,3312.6,3311.3,0.97318558]
[1768721086200,1.05823966,3312.5,3311.3,0.97318558]
[1768721086401,1.24193998,3312.7,3311.3,0.97318558]
[1768721086597,1.05823968,3312.6,3311.3,0.97318558]
[1768721086806,1.05823968,3312.5,3311.3,0.97318558]
[1768721087007,1.24193998,3312.7,3311.3,0.97318558]
[1768721087206,1.05823888,3312.6,3311.3,0.97318558]
[1768721087402,1.05823888,3312.5,3311.3,0.97318558]
[1768721087604,1.24193998,3312.7,3311.3,0.97318558]
[1768721087805,1.05823825,3312.6,3311.3,0.97318558]
[1768721088106,1.05823825,3312.5,3311.3,0.97318558]
[1768721088303,1.24193998,3312.7,3311.3,0.97318558]
[1768721088512,1.05823773,3312.6,3311.3,0.97318558]
[1768721088811,1.05823773,3312.5,3311.3,0.97318558]
[1768721089012,1.24193998,3312.7,3311.3,0.97318558]
[1768721089213,1.05820672,3312.6,3311.3,0.97318558]
[1768721089414,1.05820672,3312.5,3311.3,0.97318558]
[1768721089614,1.24193998,3312.7,3311.3,0.97318558]
[1768721089815,1.05820627,3312.6,3311.3,0.97318558]
[1768721090111,1.05820627,3312.5,3311.3,0.97318558]
[1768721090312,1.24193998,3312.7,3311.3,0.97318558]
[1768721090514,1.05820587,3312.6,3311.3,0.97318558]
[1768721090710,1.05820587,3312.5,3311.3,0.97318558]
[1768721090910,1.24193998,3312.7,3311.3,0.97318558]
[1768721091117,1.05820587,3312.6,3311.3,0.97318558]
[1768721091417,1.05820587,3312.5,3311.3,0.97318558]
[1768721091615,1.24193998,3312.7,3311.3,0.97318558]
[1768721091810,1.05820744,3312.6,3311.3,0.97318558]
[1768721092009,1.05820744,3312.5,3311.3,0.97318558]
[1768721092217,1.24193998,3312.7,3311.3,0.97318558]
[1768721092418,1.05840015,3312.6,3311.3,0.97318558]
[1768721092718,1.05840015,3312.5,3311.3,0.97318558]
[1768721092917,1.24193998,3312.7,3311.3,0.97318558]
[1768721093118,1.05840015,3312.6,3311.3,0.97318558]
[1768721093321,1.05840015,3312.5,3311.3,0.97318558]
[1768721093520,1.24193998,3312.7,3311.3,0.97318558]
[1768721093820,1.05839907,3312.6,3311.3,0.97318558]
[1768721094021,1.05839907,3312.5,3311.3,0.97318558]
[1768721094320,1.24193998,3312.7,3311.3,0.97318558]
[1768721094520,1.05839809,3312.6,3311.3,0.97318558]
[1768721094723,1.05839809,3312.5,3311.3,0.97318558]
[1768721094925,1.24193998,3312.7,3311.3,0.97318558]
[1768721095225,1.05839809,3312.6,3311.3,0.97318558]
[1768721095417,1.05839809,3312.5,3311.3,0.97318558]
[1768721095610,1.24193998,3312.7,3311.3,0.97318558]
[1768721095819,1.0583972,3312.6,3310.9,0.25536973]
[1768721096020,1.24193998,3312.7,3311.3,0.97318558]